bitfinex/quotes_BTCUSD_20251215
["timestamp","ask_amount","ask_price","bid_price","bid_amount"]
[1765821124851,0.11743427,85711.0,85710.0,0.13011237]
[1765821124852,0.00011422,85711.0,85710.0,0.13011237]
[1765821125068,0.00011422,85711.0,85710.0,0.04789222]
[1765821125275,0.11743427,85711.0,85710.0,0.00166237]
[1765821125492,0.11643427,85711.0,85710.0,4.95e-05]
[1765821125698,0.11643427,85711.0,85710.0,0.0030495]
[1765821125902,0.11743427,85711.0,85710.0,0.0030495]
[1765821126947,0.00111422,85711.0,85710.0,0.12911237]
[1765821127166,0.00111422,85711.0,85710.0,0.14207361]
[1765821127538,0.00111422,85711.0,85710.0,0.16540811]
[1765821127970,0.00111422,85711.0,85710.0,0.192092]
[1765821128175,0.00111422,85711.0,85710.0,0.33094655]
[1765821128529,0.00064422,85711.0,85710.0,0.30761205]
[1765821128740,0.24492161,85742.0,85710.0,0.30761205]
[1765821128741,0.01166235,85746.0,85738.0,0.01166343]
[1765821128943,0.01166099,85756.0,85746.0,0.09808235]
[1765821129146,0.01166099,85756.0,85753.0,0.01166139]
[1765821129147,0.00011486,85756.0,85753.0,0.01166139]
[1765821129354,0.01080395,85756.0,85755.0,0.04997]
[1765821129557,0.01166194,85749.0,85747.0,0.0186]
[1765821129706,0.36122385,85749.0,85747.0,0.0186]
[1765821129912,0.01166126,85754.0,85748.0,0.04997]
[1765821130122,0.24490035,85750.0,85749.0,0.01416202]
[1765821130324,0.01166139,85753.0,85749.0,0.01416202]
[1765821130525,0.01166153,85752.0,85749.0,0.01416202]
[1765821130690,0.01069498,85754.0,85752.0,0.28319812]
[1765821130888,0.00011486,85756.0,85754.0,0.23322527]
[1765821131162,0.00011486,85756.0,85755.0,0.13754753]
[1765821131386,0.00011486,85756.0,85755.0,0.19031815]
[1765821131538,0.01080877,85756.0,85755.0,0.05158287]
[1765821131941,0.00011486,85756.0,85755.0,0.05158287]
[1765821132139,0.00111486,85756.0,85755.0,0.05158287]
[1765821132320,0.00111486,85756.0,85752.0,0.001]
[1765821132321,0.23322255,85755.0,85752.0,0.001]
[1765821132538,0.23560799,85753.0,85752.0,0.001]
[1765821132725,0.35192804,85753.0,85752.0,0.001]
[1765821133226,0.23326003,85742.0,85740.0,0.0186]
[1765821133425,0.01166194,85749.0,85740.0,0.0186]
[1765821133426,0.00999313,85760.0,85741.0,0.0877559]
[1765821133655,0.23325341,85744.0,85742.0,0.04997]
[1765821133882,0.24491603,85744.0,85743.0,0.01450442]
[1765821134090,0.01166235,85746.0,85743.0,0.04997]
[1765821134091,0.24491041,85746.0,85743.0,0.04997]
[1765821134281,0.02466227,85769.0,85751.0,0.01166167]
[1765821134282,0.001,85753.0,85751.0,0.01166167]
[1765821134497,0.001,85753.0,85752.0,0.42791197]
[1765821134687,0.02466227,85789.0,85752.0,0.42791197]
[1765821134688,0.01165908,85770.0,85761.0,0.23320405]
[1765821134902,0.46625522,85790.0,85759.0,0.01166058]
[1765821134903,0.02466227,85789.0,85770.0,0.05001839]
[1765821135144,0.01165623,85791.0,85770.0,0.05001839]
[1765821135145,0.01070945,85796.0,85793.0,0.01165596]
[1765821135298,0.24476829,85796.0,85793.0,0.02021287]
[1765821135506,0.24382038,85795.0,85793.0,0.00161287]
[1765821135705,0.24382038,85795.0,85784.0,0.03645]
[1765821135706,0.01165677,85787.0,85786.0,0.0186]
[1765821136041,0.00011479,85787.0,85786.0,0.02527076]
[1765821136247,0.00011479,85787.0,85786.0,0.15133363]
[1765821136663,0.11643484,85787.0,85786.0,0.02688363]
[1765821136887,0.11643484,85787.0,85786.0,0.00667076]
[1765821137093,0.11643484,85787.0,85771.0,0.24698336]
[1765821137094,0.01165854,85774.0,85771.0,0.01380513]
[1765821137292,0.01165854,85774.0,85771.0,0.00161287]
[1765821137527,0.23316678,85776.0,85773.0,0.04997]
[1765821137701,0.23317017,85775.0,85774.0,0.06638474]
[1765821137915,0.23317017,85775.0,85771.0,0.00161287]
[1765821137916,0.23317632,85772.0,85771.0,0.00161287]
[1765821138042,0.23317632,85772.0,85755.0,0.06167951]
[1765821138043,0.23322078,85756.0,85748.0,0.03645]
[1765821138243,0.01166139,85753.0,85749.0,0.01166194]
[1765821138442,0.01166139,85753.0,85746.0,0.07448]
[1765821138443,0.01166207,85748.0,85744.0,0.03645]
[1765821138643,0.01166248,85745.0,85744.0,0.03645]
[1765821138864,0.01166248,85745.0,85744.0,0.14837512]
[1765821139088,0.01166248,85745.0,85744.0,0.19834512]
[1765821139247,0.01166207,85748.0,85744.0,0.21200189]
[1765821139462,0.23324431,85747.0,85745.0,0.12445]
[1765821139820,0.11632005,85749.0,85746.0,0.04997]
[1765821140102,0.36122302,85749.0,85748.0,0.005]
[1765821140307,0.24489258,85753.0,85748.0,0.005]
[1765821140308,0.12798104,85756.0,85752.0,0.24488981]
[1765821140543,0.23321726,85758.0,85755.0,0.00161287]
[1765821140754,0.23324816,85746.0,85745.0,0.003]
[1765821140941,0.01166221,85747.0,85745.0,0.01189393]
[1765821141148,0.24490855,85747.0,85746.0,0.002]
[1765821141344,0.23324975,85745.0,85744.0,0.00038128]
[1765821141569,0.3495698,85745.0,85744.0,0.00038128]
[1765821142809,0.23324975,85745.0,85744.0,0.12644415]
[1765821143082,0.3495698,85745.0,85744.0,0.03913156]
[1765821143220,0.3495698,85745.0,85744.0,0.00038128]
[1765821143852,0.3505698,85745.0,85744.0,0.00438128]
[1765821144046,0.3495698,85745.0,85744.0,0.00238128]
[1765821144250,0.3495698,85745.0,85744.0,0.00038128]
[1765821144409,0.23424975,85745.0,85744.0,0.00138128]
[1765821144609,0.46576443,85745.0,85744.0,0.00038128]
[1765821144835,0.46814443,85745.0,85744.0,0.00038128]
[1765821145038,0.87755558,85745.0,85744.0,0.00038128]
[1765821145929,0.87855558,85745.0,85744.0,0.00238128]
[1765821146075,0.87855558,85745.0,85744.0,0.00338128]
[1765821146274,0.87855558,85745.0,85744.0,0.00138128]
[1765821146275,0.76122443,85745.0,85744.0,0.00138128]
[1765821146498,0.76422443,85745.0,85744.0,0.00138128]
[1765821146901,0.78244443,85745.0,85744.0,0.00138128]
[1765821147100,0.78482443,85745.0,85744.0,0.00138128]
[1765821148515,0.76622443,85745.0,85744.0,0.00138128]
[1765821148844,0.78006443,85745.0,85744.0,0.00138128]
[1765821149066,0.76146443,85745.0,85744.0,0.00138128]
[1765821149243,0.78482443,85745.0,85744.0,0.00138128]
[1765821149462,0.23334227,85711.0,85710.0,0.1000495]
[1765821149633,0.23372466,85711.0,85710.0,0.1000495]
[1765821150688,0.23572466,85711.0,85710.0,0.10166237]
[1765821150890,0.00438239,85711.0,85710.0,0.2340054]
[1765821151061,0.00238239,85711.0,85710.0,0.2330054]
[1765821151640,0.00238239,85711.0,85710.0,0.1586054]
[1765821151840,0.00038239,85711.0,85710.0,0.2268654]
[1765821152422,0.00138239,85711.0,85710.0,0.2298654]
[1765821152574,0.00138239,85711.0,85710.0,0.27988379]
[1765821152871,0.11632005,85735.0,85717.0,0.01166629]
[1765821153071,0.01166588,85720.0,85717.0,0.00172773]
[1765821153201,0.01166561,85722.0,85718.0,0.01166616]
[1765821153402,0.24497963,85722.0,85718.0,0.01327903]
[1765821153631,0.23332322,85718.0,85717.0,0.00011486]
[1765821154071,0.35341327,85718.0,85717.0,0.00111486]
[1765821154239,0.35341327,85718.0,85717.0,0.00011486]
[1765821154441,0.64411327,85718.0,85717.0,0.00011486]
[1765821154640,0.76421442,85718.0,85717.0,0.00011486]
[1765821154846,0.7640779,85718.0,85717.0,0.00011486]
[1765821156365,0.7603079,85718.0,85717.0,0.00011486]
[1765821156602,0.7846779,85718.0,85717.0,0.00011486]
[1765821156804,0.7876779,85718.0,85717.0,0.00111486]
[1765821157244,0.7839079,85718.0,85717.0,0.00111486]
[1765821158106,0.7876779,85718.0,85717.0,0.00111486]
[1765821158302,0.8230283,85718.0,85717.0,0.00111486]
[1765821158909,0.8044283,85718.0,85717.0,0.00111486]
[1765821159214,0.005,85718.0,85717.0,0.00111486]
[1765821159367,0.0829288,85718.0,85717.0,0.00111486]
[1765821159574,0.02946009,85718.0,85717.0,0.00111486]
[1765821159975,0.5340354,85711.0,85710.0,0.1000495]
[1765821160160,0.59163005,85711.0,85710.0,0.1000495]
[1765821160381,0.59528005,85711.0,85710.0,0.1000495]
[1765821160595,0.58458309,85711.0,85710.0,0.1000495]
[1765821160796,0.57457193,85711.0,85710.0,0.1000495]
[1765821161022,0.66864198,85711.0,85710.0,0.1000495]
[1765821161224,0.64401232,85711.0,85710.0,0.1000495]
[1765821161658,0.64766232,85711.0,85710.0,0.1000495]
[1765821162036,0.5413354,85711.0,85710.0,0.1000495]
[1765821162436,0.5443354,85711.0,85710.0,0.1010495]
[1765821163355,0.66066655,85711.0,85710.0,0.1010495]
[1765821163551,0.5443354,85711.0,85710.0,0.1004495]
[1765821163926,0.00665,85711.0,85710.0,0.1004495]
[1765821164985,0.12662005,85711.0,85710.0,0.1004495]
[1765821165187,0.12562005,85711.0,85710.0,0.1004495]
[1765821165501,0.11632006,85711.0,85710.0,0.10106237]
[1765821165630,0.11732006,85711.0,85710.0,0.10206237]
[1765821165835,0.11732006,85711.0,85710.0,0.11221861]
[1765821166255,0.11732006,85711.0,85710.0,0.10206237]
[1765821167204,0.11732006,85711.0,85710.0,0.1004495]
[1765821168800,0.001,85711.0,85710.0,0.1004495]
[1765821169003,0.001,85711.0,85710.0,0.10206237]
[1765821169204,0.11732006,85711.0,85710.0,0.10206237]
[1765821169608,0.01099313,85711.0,85710.0,0.11231861]
[1765821170307,0.001,85711.0,85710.0,0.11231861]
[1765821170484,0.11732006,85711.0,85710.0,0.11231861]
[1765821171299,0.35066233,85711.0,85710.0,0.10206237]
[1765821171731,0.23434227,85711.0,85710.0,0.10206237]
[1765821171902,0.35066233,85711.0,85710.0,0.10206237]
[1765821172107,0.001,85711.0,85710.0,0.10206237]
[1765821172489,0.001,85711.0,85710.0,0.15208076]
[1765821172943,0.001,85711.0,85710.0,0.17068076]
[1765821173192,0.001,85711.0,85710.0,0.42692531]
[1765821173345,0.04108496,85748.0,85710.0,0.42692531]
[1765821173346,0.01166235,85746.0,85738.0,0.01166343]
[1765821173560,0.00011473,85746.0,85741.0,0.01166303]
[1765821173758,0.00011473,85746.0,85743.0,0.01166275]
[1765821173958,0.00011473,85746.0,85743.0,0.01327562]
[1765821174286,0.00011473,85746.0,85744.0,0.23325106]
[1765821174422,0.00011473,85746.0,85745.0,0.30991153]
[1765821174626,0.00011473,85746.0,85745.0,0.28819943]
[1765821174881,0.00011473,85746.0,85745.0,0.33821782]
[1765821175120,0.00011473,85746.0,85745.0,0.10496807]
[1765821175288,0.23336176,85746.0,85745.0,0.07354968]
[1765821175560,0.23336176,85746.0,85745.0,0.02021287]
[1765821175561,0.00011473,85746.0,85745.0,0.02021287]
[1765821175776,0.00011473,85746.0,85745.0,0.00261287]
[1765821175976,0.00111473,85746.0,85745.0,0.003]
[1765821176181,0.0118329,85746.0,85745.0,0.003]
[1765821176389,0.0108329,85746.0,85745.0,0.001]
[1765821176604,0.00111473,85746.0,85745.0,0.02759129]
[1765821176802,0.00111473,85746.0,85745.0,0.02659129]
[1765821176922,0.0118329,85746.0,85745.0,0.002]
[1765821177122,0.0118329,85746.0,85745.0,0.003]
[1765821177546,0.0118329,85746.0,85745.0,0.002]
[1765821177779,0.23327151,85737.0,85736.0,0.05001839]
[1765821177990,0.23327151,85737.0,85730.0,0.01166452]
[1765821177991,0.01166412,85733.0,85731.0,0.05001839]
[1765821178213,0.01166412,85733.0,85732.0,0.14710781]
[1765821178571,0.01166412,85733.0,85732.0,0.09708942]
[1765821178775,0.23328092,85734.0,85732.0,0.0186]
[1765821179229,0.001,85733.0,85732.0,0.0186]
[1765821179575,0.23328512,85732.0,85731.0,0.00161287]
[1765821180446,0.23328512,85732.0,85720.0,0.01166588]
[1765821180447,0.01166534,85724.0,85720.0,0.01166588]
[1765821180761,0.01166534,85724.0,85721.0,0.0268324]
[1765821180908,0.23331233,85722.0,85720.0,0.00161287]
[1765821181108,0.01166534,85724.0,85720.0,0.00161287]
[1765821181109,0.24497794,85724.0,85720.0,0.00161287]
[1765821181313,0.03637976,85731.0,85727.0,0.01166493]
[1765821181515,0.001,85732.0,85729.0,0.24495653]
[1765821181698,0.24495331,85731.0,85730.0,0.02815647]
[1765821182603,0.24495331,85731.0,85729.0,0.00261287]
[1765821183039,0.02471537,85732.0,85730.0,0.30076276]
[1765821183318,0.01166275,85743.0,85740.0,0.05001839]
[1765821183531,0.23327814,85735.0,85731.0,0.03660604]
[1765821183819,0.01166384,85735.0,85732.0,0.06861839]
[1765821183999,0.23327495,85736.0,85733.0,0.01166412]
[1765821184318,0.01166371,85736.0,85733.0,0.24494599]
[1765821184472,0.24493557,85737.0,85733.0,0.24494599]
[1765821184473,0.24493557,85737.0,85733.0,0.01166412]
[1765821184673,0.23327695,85735.0,85734.0,0.0186]
[1765821184898,0.001,85735.0,85734.0,0.02021287]
[1765821185098,0.01166343,85738.0,85734.0,0.26515489]
[1765821185297,0.01166343,85738.0,85734.0,0.02021287]
[1765821185298,0.23327598,85736.0,85734.0,0.02021287]
[1765821185675,0.24493814,85737.0,85734.0,0.02021287]
[1765821185676,0.01166357,85737.0,85734.0,0.02021287]
[1765821185897,0.24493753,85737.0,85734.0,0.02021287]
[1765821186099,0.01166343,85738.0,85734.0,0.25349211]
[1765821186284,0.23327372,85737.0,85734.0,0.02021287]
[1765821186488,0.23327618,85736.0,85734.0,0.02021287]
[1765821186696,0.23327618,85736.0,85734.0,0.00146891]
[1765821186918,0.23327618,85736.0,85734.0,0.00246891]
[1765821187115,0.001,85735.0,85734.0,0.00446891]
[1765821187290,0.001,85735.0,85734.0,0.0544873]
[1765821187505,0.02470998,85768.0,85740.0,0.01166316]
[1765821187506,0.01166221,85747.0,85740.0,0.01166316]
[1765821187708,0.01166262,85744.0,85741.0,0.0186]
[1765821187879,0.11632006,85752.0,85744.0,0.23325104]
[1765821188082,0.6962588,85770.0,85744.0,0.23471995]
[1765821188083,0.24489882,85750.0,85744.0,0.23471995]
[1765821188285,0.0116618,85750.0,85744.0,0.00146891]
[1765821188480,0.01166139,85753.0,85745.0,0.0514873]
[1765821188694,0.01166126,85754.0,85745.0,0.0987473]
[1765821188902,0.23324484,85747.0,85745.0,0.0514873]
[1765821189149,0.01166167,85751.0,85745.0,0.28473705]
[1765821189323,0.23323233,85752.0,85745.0,0.28473705]
[1765821189324,0.01166207,85748.0,85745.0,0.28473705]
[1765821189525,0.23336176,85746.0,85745.0,0.0514873]
[1765821189711,0.23336176,85746.0,85745.0,0.00146891]
[1765821189914,0.00011473,85746.0,85745.0,0.00135532]
[1765821190132,0.00011473,85746.0,85745.0,0.00235532]
[1765821190333,0.00011473,85746.0,85745.0,0.40747346]
[1765821190551,0.00011473,85746.0,85745.0,0.41846654]
[1765821190757,0.00011473,85746.0,85745.0,0.44395346]
[1765821190933,0.00011473,85746.0,85745.0,0.55947351]
[1765821191525,0.00011473,85746.0,85745.0,0.55847351]
[1765821191885,0.00111473,85746.0,85745.0,0.56047351]
[1765821192421,0.00111473,85746.0,85745.0,0.56247351]
[1765821192634,0.00111473,85746.0,85745.0,0.34370346]
[1765821192800,0.00111473,85746.0,85745.0,0.07297371]
[1765821193012,0.00111473,85746.0,85745.0,0.22114868]
[1765821193219,0.00111473,85746.0,85745.0,0.07597371]
[1765821193400,0.00011473,85746.0,85745.0,0.08057108]
[1765821193610,0.00111473,85746.0,85745.0,0.03019737]
[1765821193811,0.00111473,85746.0,85745.0,0.0246]
[1765821194037,0.00011473,85746.0,85745.0,0.0206]
[1765821194291,0.23336176,85746.0,85745.0,0.0226]
[1765821194457,0.00011473,85746.0,85745.0,0.0226]
[1765821195006,0.00011473,85746.0,85745.0,0.0206]
[1765821195131,0.00011473,85746.0,85745.0,0.0186]
[1765821195333,0.00011473,85746.0,85739.0,0.24492761]
[1765821195334,0.00011473,85746.0,85744.0,0.18533282]
[1765821195540,0.00011473,85746.0,85744.0,0.18668814]
[1765821196339,0.00011473,85746.0,85745.0,0.19654868]
[1765821196742,0.00011473,85746.0,85745.0,0.28874376]
[1765821196942,0.24482422,85776.0,85770.0,0.01165908]
[1765821197141,0.24482422,85776.0,85773.0,0.01165868]
[1765821197142,0.00011479,85776.0,85773.0,0.01165868]
[1765821197344,0.00011479,85776.0,85774.0,0.2589551]
[1765821197544,0.00011479,85776.0,85775.0,0.05001839]
[1765821197747,0.00011479,85776.0,85775.0,0.07469052]
[1765821197957,0.00211479,85776.0,85775.0,0.05137371]
[1765821198452,0.00011479,85776.0,85775.0,0.05137371]
[1765821198602,0.00011479,85776.0,85775.0,0.09061413]
[1765821199205,0.00111479,85776.0,85775.0,0.09061413]
[1765821199607,0.00111479,85776.0,85775.0,0.23578094]
[1765821199808,0.00011479,85776.0,85775.0,0.35130099]
[1765821199993,0.00011479,85776.0,85775.0,0.32798418]
[1765821200190,0.00011479,85776.0,85775.0,0.32886261]
[1765821200394,0.0116546,85803.0,85775.0,0.32886261]
[1765821200395,0.01072566,85803.0,85800.0,0.01165501]
[1765821200589,0.01165324,85813.0,85800.0,0.01165501]
[1765821200590,0.02237711,85813.0,85809.0,0.01165378]
[1765821200828,0.24472307,85812.0,85810.0,0.02578536]
[1765821201029,0.24472307,85812.0,85805.0,0.01165433]
[1765821201030,0.01165378,85809.0,85806.0,0.01165419]
[1765821201371,0.00038279,85813.0,85811.0,0.23307035]
[1765821201510,0.00038279,85813.0,85812.0,0.16413537]
[1765821201711,0.00038279,85813.0,85812.0,0.26203213]
[1765821201911,0.00038279,85813.0,85812.0,0.23872537]
[1765821202296,0.00038279,85813.0,85812.0,0.28874376]
[1765821202756,0.00038279,85813.0,85812.0,0.21415376]
[1765821203083,0.00038279,85813.0,85812.0,0.17322371]
[1765821203292,0.00038279,85813.0,85812.0,0.33365052]
[1765821203427,0.00038279,85813.0,85812.0,0.31034376]
[1765821203628,0.00138279,85813.0,85812.0,0.07697371]
[1765821203831,0.00038279,85813.0,85812.0,0.09628047]
[1765821204039,0.00038279,85813.0,85812.0,0.05437371]
[1765821204245,0.00038279,85813.0,85812.0,0.30504134]
[1765821204438,0.00038279,85813.0,85812.0,0.40629134]
[1765821204667,0.00038279,85813.0,85812.0,0.42689134]
[1765821205171,0.00038279,85813.0,85812.0,0.42489134]
[1765821205316,0.00038279,85813.0,85812.0,0.35230134]
[1765821205516,0.00038279,85813.0,85812.0,0.30504134]
[1765821205750,0.00038279,85813.0,85812.0,0.30704134]
[1765821206154,0.00038279,85813.0,85812.0,0.28444134]
[1765821206429,0.00038279,85813.0,85812.0,0.30504134]
[1765821206644,0.00038279,85813.0,85812.0,0.00335532]
[1765821206911,0.23306763,85812.0,85810.0,0.0186]
[1765821207114,0.00038279,85813.0,85810.0,0.28965801]
[1765821207260,0.00038279,85813.0,85811.0,0.23306953]
[1765821207457,0.00038279,85813.0,85812.0,0.05201839]
[1765821207658,0.00038279,85813.0,85812.0,0.28539052]
[1765821207859,0.00038279,85813.0,85812.0,0.3460353]
[1765821208283,0.00038279,85813.0,85812.0,0.34597081]
[1765821208899,0.00038279,85813.0,85812.0,0.34797081]
[1765821209658,0.00038279,85813.0,85812.0,0.34997081]
[1765821209859,0.00038279,85813.0,85812.0,0.34797081]
[1765821210088,0.0004,85836.0,85835.0,0.34852523]
[1765821210291,0.00051476,85836.0,85835.0,0.47725479]
[1765821210498,0.00051476,85836.0,85835.0,0.60039683]
[1765821210711,0.00051476,85836.0,85835.0,0.32920678]
[1765821211599,0.00051476,85836.0,85835.0,0.08270795]
[1765821211890,0.00051476,85836.0,85835.0,0.05637371]
[1765821212037,0.00051476,85836.0,85835.0,0.00235532]
[1765821212234,0.00051476,85836.0,85835.0,0.002]
[1765821212477,0.00051476,85836.0,85835.0,0.001]
[1765821212743,0.00051476,85836.0,85835.0,0.002]
[1765821212905,0.01117401,85836.0,85835.0,0.001]
[1765821213121,0.11683482,85836.0,85835.0,0.001]
[1765821213375,0.01050789,85836.0,85835.0,0.001]
[1765821213575,0.01050789,85836.0,85821.0,0.01165215]
[1765821213776,0.01165107,85829.0,85825.0,0.01165161]
[1765821213995,0.01165025,85835.0,85826.0,0.24467838]
[1765821214198,0.01165066,85832.0,85829.0,0.24467064]
[1765821214333,0.24466502,85832.0,85829.0,0.01165107]
[1765821214538,0.01165161,85825.0,85822.0,0.02866025]
[1765821214739,0.24468216,85826.0,85822.0,0.24469151]
[1765821214935,0.01165175,85824.0,85820.0,0.24469772]
[1765821215150,0.24468723,85824.0,85821.0,0.24469387]
[1765821215353,0.24469035,85823.0,85820.0,0.01165229]
[1765821215552,0.01165215,85821.0,85818.0,0.01856]
[1765821215775,0.23304814,85820.0,85818.0,0.01856]
[1765821215976,0.23304814,85820.0,85819.0,0.02749253]
[1765821216184,0.24468038,85827.0,85821.0,0.01165215]
[1765821216335,0.01165134,85827.0,85824.0,0.01165175]
[1765821216667,0.24468607,85825.0,85821.0,0.2460501]
[1765821216871,0.23303805,85823.0,85821.0,0.01300747]
[1765821217082,0.23300677,85835.0,85827.0,0.23302578]
[1765821217313,0.23300677,85835.0,85728.0,0.10450417]
[1765821217314,0.01164808,85851.0,85835.0,0.34852523]
[1765821217507,0.23295374,85854.0,85835.0,0.48348472]
[1765821217710,0.01067099,85853.0,85835.0,0.48348472]
[1765821217910,0.11632006,85865.0,85847.0,0.01164863]
[1765821218278,0.23294596,85857.0,85850.0,0.01164822]
[1765821218447,0.01164713,85858.0,85848.0,0.03024849]
[1765821218448,0.01164713,85858.0,85855.0,0.01164754]
[1765821218651,0.01164713,85858.0,85856.0,0.25973756]
[1765821218851,0.24459007,85858.0,85856.0,0.02678955]
[1765821218999,0.01164713,85858.0,85856.0,0.02678955]
[1765821219199,0.00311468,85865.0,85864.0,0.23292648]
[1765821219393,0.00311468,85865.0,85864.0,0.02678669]
[1765821219636,0.00311468,85865.0,85864.0,0.04538669]
[1765821221173,0.00011468,85865.0,85864.0,0.04674201]
[1765821221336,0.00011468,85865.0,85864.0,0.08002773]
[1765821221535,0.00011468,85865.0,85864.0,0.13004612]
[1765821221739,0.00111468,85865.0,85864.0,0.13004612]
[1765821222070,0.00111468,85865.0,85864.0,0.25063612]
[1765821222405,0.23290478,85872.0,85871.0,0.11552005]
[1765821222534,0.23290478,85872.0,85864.0,0.04674201]
[1765821222535,0.23292377,85865.0,85864.0,0.00135532]
[1765821222744,0.24458899,85859.0,85858.0,0.05001839]
[1765821223024,0.01164849,85848.0,85845.0,0.0116489]
[1765821223258,0.11619463,85878.0,85854.0,0.24460051]
[1765821223259,0.011647,85859.0,85854.0,0.24460051]
[1765821223452,0.0116474,85856.0,85855.0,0.02446005]
[1765821223654,0.24460452,85853.0,85849.0,0.24461493]
[1765821223966,0.01164727,85857.0,85852.0,0.01164795]
[1765821224111,0.24457582,85863.0,85856.0,0.05001839]
[1765821224320,0.25,85890.0,85856.0,0.05001839]
[1765821224321,0.01164605,85866.0,85863.0,0.01164646]
[1765821224686,0.23294119,85859.0,85857.0,0.0186]
[1765821224816,0.23293191,85862.0,85858.0,0.0186]
[1765821225020,0.23293789,85860.0,85858.0,0.0186]
[1765821225649,0.24458222,85861.0,85858.0,0.0186]
[1765821225850,0.23293792,85860.0,85858.0,0.0186]
[1765821226049,0.24458478,85860.0,85857.0,0.04533877]
[1765821226225,0.24458478,85860.0,85858.0,0.01968701]
[1765821226570,0.24458478,85860.0,85859.0,0.0186]
[1765821226780,0.01164686,85860.0,85859.0,0.0186]
[1765821227113,0.24458705,85859.0,85857.0,0.05001839]
[1765821227351,0.24458705,85859.0,85858.0,0.0186]
[1765821227597,0.01164646,85863.0,85858.0,0.06136174]
[1765821227727,0.23293555,85861.0,85858.0,0.29430429]
[1765821228068,0.01164646,85863.0,85860.0,0.24458262]
[1765821228322,0.01164578,85868.0,85862.0,0.01164659]
[1765821228509,0.01164591,85867.0,85864.0,0.12716637]
[1765821228716,0.24456543,85867.0,85865.0,0.03391117]
[1765821228895,0.01164523,85872.0,85869.0,0.01164564]
[1765821229279,0.24455152,85872.0,85869.0,0.01164564]
[1765821229486,0.01164523,85872.0,85871.0,0.11552005]
[1765821229725,0.23291292,85869.0,85868.0,0.13419316]
[1765821229891,0.24364026,85869.0,85868.0,0.04971461]
[1765821230291,0.01072734,85869.0,85868.0,0.28263024]
[1765821230689,0.01072734,85869.0,85868.0,0.44959711]
[1765821231206,0.01072734,85869.0,85868.0,0.34399703]
[1765821231407,0.02471476,85874.0,85873.0,0.24289515]
[1765821231605,0.24452332,85882.0,85874.0,0.34849252]
[1765821231606,0.02471476,85875.0,85874.0,0.34849252]
[1765821231809,0.23289936,85874.0,85873.0,0.00135532]
[1765821232126,0.23289936,85874.0,85873.0,0.01991532]
[1765821232307,0.25761412,85874.0,85873.0,0.01991532]
[1765821232512,0.02471476,85874.0,85873.0,0.16662309]
[1765821232733,0.02671476,85874.0,85873.0,0.39952516]
[1765821232942,0.002,85874.0,85873.0,0.16662309]
[1765821233278,0.24457977,85862.0,85859.0,0.24458683]
[1765821233465,0.23293452,85863.0,85860.0,0.01164686]
[1765821233615,0.01164618,85865.0,85864.0,0.00999308]
[1765821233816,0.04325422,85874.0,85871.0,0.01164537]
[1765821234013,0.02475121,85875.0,85874.0,0.11559316]
[1765821234270,0.24453637,85877.0,85875.0,0.11559316]
[1765821234507,0.23288585,85879.0,85877.0,0.11559316]
[1765821234707,0.25765821,85878.0,85877.0,0.11559316]
[1765821234914,0.25765821,85878.0,85877.0,0.01711899]
[1765821235285,0.23276727,85878.0,85877.0,0.01711899]
[1765821235442,0.23289665,85875.0,85874.0,0.00135532]
[1765821235650,0.23289394,85876.0,85874.0,0.00135532]
[1765821235868,0.23289665,85875.0,85868.0,0.01856]
[1765821236096,0.23291292,85869.0,85868.0,0.11559316]
[1765821236314,0.0364148,85873.0,85872.0,0.00999308]
[1765821236506,0.2445411,85876.0,85873.0,0.00999308]
[1765821236685,0.23289714,85875.0,85873.0,0.00999308]
[1765821236887,0.0297697,85878.0,85874.0,0.01164496]
[1765821237090,0.0297697,85878.0,85877.0,0.23289122]
[1765821237091,0.002,85878.0,85877.0,0.23289122]
[1765821237313,0.27911498,85881.0,85877.0,0.11552005]
[1765821237536,0.002,85875.0,85874.0,0.00999308]
[1765821237734,0.001,85876.0,85875.0,0.00999308]
[1765821237939,0.23389394,85876.0,85866.0,0.01164605]
[1765821238280,0.24455287,85871.0,85870.0,0.00999308]
[1765821238491,0.23291442,85869.0,85863.0,0.12716651]
[1765821238697,0.01164591,85867.0,85862.0,0.01164659]
[1765821238893,0.08191,85864.0,85863.0,0.00999308]
[1765821239032,0.03459,85864.0,85863.0,0.00999308]
[1765821239234,0.01164564,85869.0,85863.0,0.00999308]
[1765821239235,0.00011464,85871.0,85868.0,0.01164578]
[1765821239441,0.01164605,85866.0,85865.0,0.11552005]
[1765821239822,0.08191,85866.0,85857.0,0.00999308]
[1765821240024,0.08191,85866.0,85838.0,0.07211]
[1765821240025,0.29189566,85863.0,85862.0,0.11552005]
[1765821240443,0.36118566,85863.0,85862.0,0.11552005]
[1765821240656,0.01164876,85846.0,85840.0,0.02329916]
[1765821240789,0.01164876,85846.0,85838.0,0.01164985]
[1765821240790,0.00161287,85863.0,85853.0,0.01164781]
[1765821240991,0.00011464,85871.0,85863.0,0.01164646]
[1765821241249,0.01164768,85854.0,85849.0,0.01164835]
[1765821241427,0.01164835,85849.0,85848.0,0.00999308]
[1765821241629,0.01164822,85850.0,85848.0,0.00999308]
[1765821241630,0.24461438,85850.0,85848.0,0.00999308]
[1765821241833,0.00161287,85854.0,85853.0,0.23295633]
[1765821242031,0.23295375,85854.0,85852.0,0.11552005]
[1765821242434,0.30364375,85854.0,85852.0,0.11552005]
[1765821242600,0.0454,85853.0,85852.0,0.11552005]
[1765821243252,0.0454,85853.0,85852.0,0.23295904]
[1765821243487,0.24458135,85861.0,85860.0,0.11552005]
[1765821243692,0.28998135,85861.0,85860.0,0.11552005]
[1765821243899,0.29159422,85861.0,85860.0,0.11552005]
[1765821244102,0.29159422,85861.0,85854.0,0.01164768]
[1765821244103,0.23294819,85856.0,85852.0,0.001]
[1765821244350,0.24459844,85855.0,85854.0,0.11552005]
[1765821244551,0.23295633,85853.0,85852.0,0.00999308]
[1765821244676,0.00161287,85861.0,85860.0,0.00999308]
[1765821244881,0.1293496,85861.0,85853.0,0.01164781]
[1765821245105,0.07230287,85861.0,85858.0,0.01164713]
[1765821245408,0.07230287,85861.0,85859.0,0.23293975]
[1765821245409,0.00161287,85861.0,85859.0,0.23293975]
[1765821245609,0.03459,85864.0,85863.0,0.2329292]
[1765821245813,0.03459,85864.0,85863.0,0.11552005]
[1765821246236,0.03459,85864.0,85863.0,0.34844925]
[1765821246441,0.00011464,85871.0,85869.0,0.23291292]
[1765821246638,0.00011464,85871.0,85870.0,0.23291021]
[1765821246974,0.00011464,85871.0,85870.0,0.4655427]
[1765821247188,0.00011464,85871.0,85870.0,0.4322586]
[1765821247374,0.00011464,85871.0,85870.0,0.57532324]
[1765821247583,0.00011464,85871.0,85870.0,0.54777865]
[1765821247782,0.01077628,85895.0,85894.0,0.23284513]
[1765821248014,0.0004,85899.0,85898.0,0.37319576]
[1765821248162,0.00078218,85899.0,85898.0,0.43218268]
[1765821248345,0.00078218,85899.0,85898.0,0.57524732]
[1765821248574,0.00078218,85899.0,85898.0,0.45972727]
[1765821248890,0.00078218,85899.0,85898.0,0.46972035]